bitfinex-derivatives/quotes_BTCF0:USTF0_20240925
["timestamp","ask_amount","ask_price","bid_price","bid_amount"]
[1727280837294,0.013,63640.0,63639.0,0.272964]
[1727280838097,0.013,63640.0,63639.0,0.351528]
[1727280838297,0.0037,63648.0,63647.0,0.078554]
[1727280838599,0.08090221,63654.0,63653.0,0.078546]
[1727280838794,0.078542,63657.0,63653.0,0.3608]
[1727280838994,0.157085,63657.0,63656.0,0.078543]
[1727280840084,0.078542,63657.0,63656.0,0.078543]
[1727280840287,0.01384985,63659.0,63658.0,0.07854]
[1727280840484,0.078538,63660.0,63659.0,0.078537]
[1727280840692,0.078538,63660.0,63654.0,0.16]
[1727280840693,0.0301,63662.0,63661.0,0.078537]
[1727280840886,0.36276,63663.0,63662.0,0.078535]
[1727280841102,0.00196,63663.0,63662.0,0.078535]
[1727280841395,0.07853,63667.0,63666.0,0.07853]
[1727280841784,0.078534,63664.0,63662.0,0.078535]
[1727280841985,1.8608,63671.0,63661.0,0.001]
[1727280841986,0.16,63665.0,63661.0,0.001]
[1727280842397,0.238535,63662.0,63661.0,0.001]
[1727280843506,0.238535,63662.0,63659.0,0.439339]
[1727280843507,0.078538,63660.0,63659.0,0.439339]
[1727280845000,0.087538,63660.0,63659.0,0.440339]
[1727280845206,0.087538,63660.0,63659.0,0.441339]
[1727280845706,0.166076,63660.0,63659.0,0.3628]
[1727280845902,0.087538,63660.0,63659.0,0.3628]
[1727280846097,0.10133825,63660.0,63659.0,0.3628]
[1727280847202,0.10133825,63660.0,63651.0,0.078549]
[1727280847203,0.078545,63654.0,63651.0,0.078549]
[1727280847599,0.078545,63654.0,63648.0,0.078552]
[1727280847901,0.16,63655.0,63644.0,0.078557]
[1727280848098,0.3608,63658.0,63644.0,0.078557]
[1727280848099,0.16,63649.0,63644.0,0.078557]
[1727280848298,0.07856,63642.0,63641.0,0.0023566]
[1727280848504,0.078574,63632.0,63629.0,0.3645]
[1727280848690,0.078575,63630.0,63629.0,0.3608]
[1727280849406,0.16,63633.0,63632.0,0.078572]
[1727280849796,0.07857,63634.0,63632.0,0.078572]
[1727280850010,0.078571,63633.0,63632.0,0.078572]
[1727280850509,0.238571,63633.0,63632.0,0.078572]
[1727280850714,0.078574,63631.0,63629.0,0.001]
[1727280850909,0.238575,63630.0,63628.0,0.078577]
[1727280851110,0.078575,63630.0,63629.0,0.439376]
[1727280853312,0.001,63631.0,63630.0,0.078575]
[1727280853511,0.0037,63638.0,63629.0,0.3608]
[1727280853814,0.3608,63648.0,63629.0,0.3608]
[1727280853815,0.0037,63642.0,63641.0,0.078561]
[1727280854003,0.00235747,63647.0,63646.0,0.078555]
[1727280854316,0.00235747,63647.0,63646.0,0.238555]
[1727280855202,0.00235747,63647.0,63646.0,0.078555]
[1727280856414,0.00335747,63647.0,63646.0,0.079555]
[1727280857109,0.00735747,63647.0,63646.0,0.078555]
[1727280857912,0.08591147,63647.0,63646.0,0.078555]
[1727280859911,0.078558,63644.0,63643.0,0.439358]
[1727280861020,0.079558,63644.0,63643.0,0.439358]
[1727280861603,0.078561,63641.0,63640.0,0.078561]
[1727280861812,0.078564,63639.0,63638.0,0.0315]
[1727280862019,0.078564,63639.0,63629.0,0.03]
[1727280862020,0.078569,63635.0,63629.0,0.03]
[1727280862211,0.078576,63630.0,63629.0,0.078575]
[1727280863105,0.078576,63630.0,63629.0,0.092575]
[1727280863716,0.078576,63630.0,63629.0,0.079575]
[1727280864504,0.078576,63630.0,63629.0,0.081575]
[1727280868219,0.01382491,63635.0,63634.0,0.07857]
[1727280868421,0.07856,63642.0,63641.0,0.07856]
[1727280868621,0.078557,63645.0,63644.0,0.078556]
[1727280870317,0.439355,63646.0,63645.0,0.078556]
[1727280872123,0.078555,63646.0,63645.0,0.078556]
[1727280872514,0.079555,63646.0,63645.0,0.078556]
[1727280872928,0.085555,63646.0,63645.0,0.079556]
[1727280873318,0.079555,63646.0,63645.0,0.078556]
[1727280873519,0.085555,63646.0,63645.0,0.079556]
[1727280882627,0.16411,63646.0,63645.0,0.001]
[1727280882834,0.242665,63646.0,63645.0,0.001]
[1727280883040,0.16411,63646.0,63645.0,0.001]
[1727280886238,0.17295,63646.0,63645.0,0.001]
[1727280891031,0.251505,63646.0,63645.0,0.001]
[1727280892242,0.2769789,63646.0,63645.0,0.001]
[1727280893130,1.3483389,63646.0,63645.0,0.001]
[1727280893340,0.157132,63637.0,63636.0,0.3608]
[1727280893548,0.078577,63630.0,63629.0,0.078576]
[1727280894647,0.078577,63628.0,63627.0,0.0315]
[1727280894830,0.238577,63628.0,63627.0,0.110079]
[1727280895237,0.227577,63628.0,63627.0,0.110079]
[1727280895531,0.227577,63628.0,63627.0,0.0315]
[1727280895733,0.216577,63628.0,63627.0,0.0315]
[1727280895940,0.056577,63628.0,63627.0,0.110079]
[1727280896947,0.07023107,63628.0,63627.0,0.110079]
[1727280897151,0.07223107,63628.0,63627.0,0.127079]
[1727280900448,0.07223107,63628.0,63627.0,0.0485]
[1727280900773,0.15080807,63628.0,63627.0,0.0485]
[1727280900945,0.07223107,63628.0,63627.0,0.0485]
[1727280901257,0.07223107,63628.0,63627.0,0.127079]
[1727280901544,0.06233041,63633.0,63627.0,0.205658]
[1727280901745,0.3608,63635.0,63634.0,0.07857]
[1727280901952,0.439369,63635.0,63634.0,0.07857]
[1727280902953,0.3608,63635.0,63634.0,0.07857]
[1727280903254,0.00605769,63643.0,63634.0,0.07857]
[1727280903255,0.078563,63640.0,63639.0,0.078564]
[1727280905143,0.079563,63640.0,63639.0,0.079564]
[1727280905560,0.09322848,63640.0,63639.0,0.079564]
[1727280905946,0.17179248,63640.0,63639.0,0.001]
[1727280906242,0.23412289,63640.0,63639.0,0.001]
[1727280906442,0.17179248,63640.0,63639.0,0.001]
[1727280906843,0.23412289,63640.0,63639.0,0.001]
[1727280907048,0.078564,63639.0,63628.0,0.12924167]
[1727280907236,0.16,63632.0,63628.0,0.078577]
[1727280907657,0.22234298,63632.0,63628.0,0.078577]
[1727280908236,0.078576,63629.0,63628.0,0.084577]
[1727280908650,0.078576,63629.0,63628.0,0.096577]
[1727280908852,0.078576,63629.0,63628.0,0.090577]
[1727280909058,0.078576,63629.0,63628.0,0.096577]
[1727280910449,0.078576,63629.0,63628.0,0.018]
[1727280910653,0.677952,63629.0,63628.0,0.018]
[1727280910842,0.677952,63629.0,63628.0,0.006]
[1727280911046,0.677952,63629.0,63626.0,0.0314]
[1727280911047,0.061579,63627.0,63626.0,0.0314]
[1727280912253,0.061579,63627.0,63626.0,0.0354]
[1727280912944,0.061579,63627.0,63626.0,0.0404]
[1727280913250,0.140158,63627.0,63626.0,0.0404]
[1727280916154,0.140158,63627.0,63626.0,0.009]
[1727280917257,0.061579,63627.0,63626.0,0.009]
[1727280917556,0.061579,63627.0,63626.0,0.08758]
[1727280921748,0.00884,63628.0,63627.0,0.078579]
[1727280921953,0.07120761,63628.0,63627.0,0.078579]
[1727280922151,0.00884,63628.0,63627.0,0.078579]
[1727280922769,0.07120761,63628.0,63627.0,0.078579]
[1727280922952,0.00884,63628.0,63627.0,0.078579]
[1727280923352,0.00884,63628.0,63627.0,0.318158]
[1727280924052,0.00884,63628.0,63627.0,0.321158]
[1727280924560,0.00884,63628.0,63627.0,0.399737]
[1727280924753,0.00884,63628.0,63627.0,0.41354502]
[1727280926263,0.00884,63628.0,63627.0,0.399737]
[1727280927446,0.00884,63628.0,63627.0,0.082579]
[1727280927852,0.00884,63628.0,63627.0,0.443379]
[1727280928358,0.087417,63628.0,63627.0,0.004]
[1727280928758,0.14978461,63628.0,63627.0,0.004]
[1727280930961,0.087417,63628.0,63627.0,0.004]
[1727280931358,0.16533001,63628.0,63627.0,0.004]
[1727280932561,0.087417,63628.0,63627.0,0.082579]
[1727280933369,0.14979382,63628.0,63627.0,0.082579]
[1727280934061,0.14095382,63628.0,63627.0,0.082579]
[1727280934468,0.078577,63628.0,63627.0,0.004]
[1727280935368,0.238577,63628.0,63627.0,0.004]
[1727280935565,0.31649001,63628.0,63627.0,0.004]
[1727280935966,0.39506701,63628.0,63627.0,0.004]
[1727280936167,0.34263418,63628.0,63627.0,0.004]
[1727280936478,0.43613714,63628.0,63627.0,0.004]
[1727280936661,0.34263418,63628.0,63627.0,0.004]
[1727280936969,0.43623125,63628.0,63627.0,0.004]
[1727280938464,0.41075107,63628.0,63627.0,0.004]
[1727280938661,0.43623264,63628.0,63627.0,0.004]
[1727280939459,1.93623264,63628.0,63627.0,0.004]
[1727280939664,1.84263557,63628.0,63627.0,0.004]
[1727280940164,0.34263557,63628.0,63627.0,0.004]
[1727280942367,0.51737797,63628.0,63627.0,0.082579]
[1727280942573,0.3608,63628.0,63627.0,0.242579]
[1727280942761,0.42320249,63628.0,63627.0,0.242579]
[1727280943457,0.42320249,63628.0,63627.0,0.082579]
[1727280943856,0.3608,63628.0,63627.0,0.082579]
[1727280944066,0.42321504,63628.0,63627.0,0.082579]
[1727280944273,0.439377,63628.0,63627.0,0.082579]
[1727280944471,0.3608,63628.0,63627.0,0.082579]
[1727280944772,0.439377,63628.0,63627.0,0.082579]
[1727280945972,0.3608,63628.0,63627.0,0.082579]
[1727280946473,0.06242598,63629.0,63628.0,0.078577]
[1727280946776,0.37461914,63634.0,63629.0,0.078576]
[1727280946777,0.06242598,63630.0,63629.0,0.078576]
[1727280947073,0.06242598,63630.0,63629.0,0.110776]
[1727280947376,0.14100098,63630.0,63629.0,0.110776]
[1727280947584,0.078575,63630.0,63629.0,0.110776]
[1727280949463,0.078576,63629.0,63628.0,0.002]
[1727280949774,0.18263201,63629.0,63628.0,0.002]
[1727280950186,0.078584,63623.0,63622.0,0.3608]
[1727280950475,0.14100647,63623.0,63622.0,0.3608]
[1727280951781,0.078585,63622.0,63621.0,0.078586]
[1727280952283,0.14098974,63622.0,63621.0,0.078586]
[1727280952577,0.14098974,63622.0,63616.0,0.439391]
[1727280952578,0.23654121,63622.0,63616.0,0.439391]
[1727280952769,0.06240474,63620.0,63616.0,0.439391]
[1727280952974,0.06240474,63620.0,63619.0,0.078588]
[1727280953287,0.078587,63620.0,63619.0,0.078588]
[1727280953468,0.078587,63620.0,63616.0,0.3608]
[1727280953469,0.07654121,63622.0,63621.0,0.078586]
[1727280953669,0.06440474,63623.0,63622.0,0.078585]
[1727280953880,0.09453974,63623.0,63622.0,0.078585]
[1727280954073,0.15594448,63623.0,63622.0,0.078585]
[1727280954268,0.09253974,63623.0,63622.0,0.078585]
[1727280954869,0.09453974,63623.0,63622.0,0.085585]
[1727280955269,0.09453974,63623.0,63622.0,0.007]
[1727280955683,0.12002204,63623.0,63622.0,0.007]
[1727280955867,0.09453974,63623.0,63622.0,0.007]
[1727280956071,0.12002186,63623.0,63622.0,0.007]
[1727280957078,0.09453974,63623.0,63622.0,0.007]
[1727280957278,0.12002185,63623.0,63622.0,0.007]
[1727280959970,0.19860585,63623.0,63622.0,0.007]
[1727280960882,0.19860586,63623.0,63622.0,0.007]
[1727280962282,0.17312374,63623.0,63622.0,0.007]
[1727280962777,0.19860583,63623.0,63622.0,0.007]
[1727280963383,0.27718983,63623.0,63622.0,0.007]
[1727280963584,0.27718983,63623.0,63610.0,0.0037]
[1727280963585,0.157196,63611.0,63610.0,0.0037]
[1727280963786,0.0786,63610.0,63605.0,0.108606]
[1727280964089,0.0786,63610.0,63604.0,0.0318]
[1727280964090,0.157212,63605.0,63604.0,0.0318]
[1727280964281,0.157212,63605.0,63596.0,0.14148283]
[1727280964282,0.078614,63598.0,63597.0,0.04704092]
[1727280964581,0.078616,63597.0,63596.0,0.0318]
[1727280964793,0.30096729,63597.0,63596.0,0.0318]
[1727280964988,0.238616,63597.0,63596.0,0.0318]
[1727280966386,0.239616,63597.0,63596.0,0.0328]
[1727280966582,0.239616,63597.0,63596.0,0.001]
[1727280967292,0.240616,63597.0,63596.0,0.001]
[1727280967800,0.25442655,63597.0,63596.0,0.001]
[1727280968996,0.01581055,63597.0,63596.0,0.239617]
[1727280969189,0.002,63597.0,63596.0,0.239617]
[1727280969890,0.002,63597.0,63596.0,0.079617]
[1727280970085,0.080616,63597.0,63596.0,0.001]
[1727280971594,0.083616,63597.0,63596.0,0.001]
[1727280972392,0.085616,63597.0,63593.0,0.3608]
[1727280972700,0.007,63597.0,63596.0,0.078617]
[1727280973598,0.003,63597.0,63596.0,0.078617]
[1727280973805,0.003,63597.0,63596.0,0.238617]
[1727280974300,0.003,63597.0,63594.0,0.078619]
[1727280974301,0.09265024,63602.0,63601.0,0.078611]
[1727280975397,0.078605,63606.0,63605.0,0.078606]
[1727280975598,0.078601,63609.0,63608.0,0.078601]
[1727280975905,0.078601,63609.0,63605.0,0.3608]
[1727280975906,0.078603,63607.0,63606.0,0.0331]
[1727280977596,0.087603,63607.0,63606.0,0.0331]
[1727280977795,0.078605,63606.0,63605.0,0.3616]
[1727280978003,0.078605,63606.0,63600.0,0.0625]
[1727280978004,0.439405,63606.0,63600.0,0.0625]
[1727280978204,0.078611,63601.0,63600.0,0.078611]
[1727280978402,0.16,63602.0,63597.0,0.078615]
[1727280978600,0.16,63598.0,63597.0,0.078615]
[1727280979103,0.078614,63599.0,63597.0,0.078615]
[1727280979293,0.078614,63599.0,63598.0,0.078614]
[1727280979492,0.078609,63603.0,63598.0,0.16]
[1727280979698,0.07861,63602.0,63598.0,0.16]
[1727280980099,0.07861,63602.0,63596.0,0.0331]
[1727280980300,0.004,63601.0,63596.0,0.0331]
[1727280980604,0.078618,63595.0,63594.0,0.440259]
[1727280980800,0.078618,63595.0,63594.0,0.439419]
[1727280981395,0.078618,63595.0,63594.0,0.3608]
[1727280984320,0.01361296,63595.0,63594.0,0.439419]
[1727280984515,0.078611,63601.0,63600.0,0.078612]
[1727280985011,0.09275484,63601.0,63600.0,0.078612]
[1727280985917,0.09975484,63601.0,63600.0,0.078612]
[1727280986721,0.10575484,63601.0,63600.0,0.078612]
[1727280987225,0.02714384,63601.0,63600.0,0.317224]
[1727280987425,0.013,63601.0,63600.0,0.678024]
[1727280987718,0.0037,63609.0,63608.0,0.078602]
[1727280987919,0.17379195,63610.0,63609.0,0.078601]
[1727280988107,0.078598,63611.0,63610.0,0.0786]
[1727280988312,0.06229086,63613.0,63605.0,0.16]
[1727280988509,0.078596,63614.0,63606.0,0.0309]
[1727280988510,0.15507938,63614.0,63606.0,0.0309]
[1727280988713,0.09278852,63614.0,63613.0,0.078596]
[1727280989022,0.0037,63617.0,63613.0,0.078596]
[1727280989023,0.06229086,63617.0,63613.0,0.078596]
[1727280989325,0.078594,63615.0,63614.0,0.078595]
[1727280989522,0.07644032,63617.0,63616.0,0.078592]
[1727280989724,0.599389,63619.0,63606.0,0.3917]
[1727280989725,0.42308813,63619.0,63613.0,0.16]
[1727280989923,0.00884,63623.0,63622.0,0.078585]
[1727280990224,0.00884,63623.0,63622.0,0.599385]
[1727280991032,0.00884,63623.0,63622.0,0.439385]
[1727280991530,0.00884,63623.0,63622.0,0.443385]
[1727280992136,0.087424,63623.0,63622.0,0.443385]
[1727280992328,0.087424,63623.0,63622.0,0.446385]
[1727280993035,0.088424,63623.0,63622.0,0.443385]
[1727280993443,0.088424,63623.0,63622.0,0.440385]
[1727280993826,0.00984,63623.0,63622.0,0.440385]
[1727280994531,0.01384,63623.0,63622.0,0.440385]
[1727280994731,0.01384,63623.0,63622.0,0.439385]
[1727280994940,0.01784,63623.0,63622.0,0.439385]
[1727280995732,0.01284,63623.0,63622.0,0.439385]
[1727280995934,0.01784,63623.0,63622.0,0.439385]
[1727280996627,0.009,63623.0,63622.0,0.439385]
[1727280997628,0.007,63623.0,63622.0,0.439385]
[1727280998327,0.006,63623.0,63622.0,0.439385]
[1727280998535,0.004,63623.0,63622.0,0.439385]
[1727280998734,0.002,63623.0,63622.0,0.439385]
[1727280998935,0.005,63623.0,63622.0,0.439385]
[1727281000846,0.002,63623.0,63622.0,0.439385]
[1727281001334,0.078578,63628.0,63626.0,0.078579]
[1727281001537,0.078578,63628.0,63627.0,0.078579]
[1727281002535,0.085578,63628.0,63627.0,0.078579]
[1727281003139,0.092578,63628.0,63627.0,0.079579]
[1727281003734,0.014,63628.0,63627.0,0.079579]
[1727281004252,0.014,63628.0,63627.0,0.112079]
[1727281004852,0.015,63628.0,63627.0,0.113079]
[1727281005832,0.0037,63635.0,63634.0,0.07857]
[1727281006039,0.01364434,63638.0,63637.0,0.078566]
[1727281006354,0.08231487,63645.0,63644.0,0.078558]
[1727281006552,0.08091486,63645.0,63644.0,0.074858]
[1727281007239,0.00235786,63645.0,63644.0,0.074858]
[1727281008053,0.078552,63649.0,63647.0,0.078553]
[1727281008348,0.078552,63649.0,63643.0,0.2226]
[1727281008349,0.09223944,63649.0,63648.0,0.078553]
[1727281008745,0.01368744,63649.0,63648.0,0.078553]
[1727281008948,0.078547,63653.0,63651.0,0.078549]
[1727281009151,0.01393213,63653.0,63651.0,0.16]
[1727281009352,0.078542,63657.0,63656.0,0.078543]
[1727281009650,0.09218622,63657.0,63656.0,0.078543]
[1727281010049,0.01364422,63657.0,63656.0,0.078543]
[1727281010257,0.078539,63659.0,63658.0,0.07854]
[1727281010552,0.3608,63664.0,63659.0,0.078538]
[1727281011050,0.0625,63665.0,63659.0,0.078538]
[1727281011051,0.078537,63661.0,63659.0,0.078538]
[1727281012156,0.04394987,63662.0,63661.0,0.078537]
[1727281012547,0.02994987,63662.0,63661.0,0.078537]
[1727281012953,0.01594987,63662.0,63661.0,0.078537]
[1727281013150,0.09448487,63662.0,63661.0,0.078537]
[1727281013451,0.09448487,63662.0,63659.0,0.001]
[1727281013452,0.078538,63660.0,63659.0,0.001]
[1727281015248,0.3608,63661.0,63655.0,0.078544]
[1727281015548,0.16,63657.0,63655.0,0.078544]
[1727281016461,0.078546,63654.0,63648.0,0.36315668]
[1727281016649,0.078547,63653.0,63648.0,0.36315668]
[1727281017073,0.078547,63653.0,63651.0,0.078548]
[1727281018150,0.088547,63653.0,63651.0,0.078548]
[1727281018350,0.078548,63652.0,63651.0,0.078548]
[1727281018855,0.238548,63652.0,63651.0,0.001]
[1727281019262,0.238548,63652.0,63651.0,0.079549]
[1727281019447,0.238548,63652.0,63651.0,0.080549]
[1727281020053,0.238548,63652.0,63651.0,0.079549]
[1727281020356,0.251548,63652.0,63651.0,0.002]
[1727281020659,0.251548,63652.0,63651.0,0.001]
[1727281021658,0.26564832,63652.0,63651.0,0.001]
[1727281021855,0.34419632,63652.0,63651.0,0.001]
[1727281022565,0.26564832,63652.0,63651.0,0.001]
[1727281023064,0.26564832,63652.0,63651.0,0.079549]
[1727281023065,0.02710032,63652.0,63651.0,0.079549]
[1727281023250,0.02710032,63652.0,63651.0,0.440349]
[1727281023959,0.013,63652.0,63651.0,0.440349]
[1727281027555,0.013,63652.0,63651.0,0.079549]
[1727281029065,0.173,63652.0,63651.0,0.079549]
[1727281029453,0.251548,63652.0,63651.0,0.001]
[1727281030452,0.251548,63652.0,63651.0,0.079549]
[1727281030661,0.091548,63652.0,63651.0,0.079549]
[1727281033664,0.15383613,63652.0,63651.0,0.001]
[1727281033856,0.091548,63652.0,63651.0,0.001]
[1727281035165,0.091548,63652.0,63651.0,0.079549]
[1727281035365,0.091548,63652.0,63651.0,0.001]
[1727281035566,0.078563,63640.0,63639.0,0.04704092]
[1727281035865,0.078563,63640.0,63639.0,0.078564]
[1727281036076,0.078559,63643.0,63642.0,0.07856]
[1727281036370,0.10403251,63643.0,63642.0,0.07856]
[1727281036666,0.10403251,63643.0,63634.0,0.04939814]
[1727281036667,0.10403251,63643.0,63638.0,0.078564]
[1727281036860,0.07802992,63640.0,63639.0,0.078564]
[1727281037055,0.07802992,63642.0,63641.0,0.078561]
[1727281037255,0.07802992,63645.0,63642.0,0.07856]
[1727281037464,0.06243783,63644.0,63643.0,0.078559]
[1727281037677,0.07802992,63648.0,63644.0,0.078558]
[1727281037678,0.06243783,63645.0,63644.0,0.078558]
[1727281037964,0.09178724,63648.0,63644.0,0.078558]
[1727281037965,0.06243783,63647.0,63645.0,0.078556]
[1727281038477,0.06243783,63647.0,63646.0,0.078555]
[1727281039065,0.15658192,63649.0,63648.0,0.078553]
[1727281040163,0.078555,63646.0,63645.0,0.001]
[1727281040768,0.16658192,63649.0,63648.0,0.078553]
[1727281040970,0.078555,63646.0,63645.0,0.079556]
[1727281041763,0.085555,63646.0,63645.0,0.079556]
[1727281042572,0.007,63646.0,63645.0,0.079556]
[1727281042870,0.014,63646.0,63645.0,0.080556]
[1727281044570,0.08789755,63646.0,63645.0,0.080556]
[1727281044771,0.02547335,63646.0,63645.0,0.080556]
[1727281045075,0.014,63646.0,63645.0,0.080556]
[1727281047972,0.014,63646.0,63645.0,0.159112]
[1727281048279,0.014,63646.0,63645.0,0.709028]
[1727281048465,0.014,63646.0,63645.0,0.77189483]
[1727281048669,0.014,63646.0,63645.0,0.709028]
[1727281049275,0.014,63646.0,63645.0,1.309028]
[1727281049582,0.014,63646.0,63645.0,1.3200955]
[1727281055381,0.014,63646.0,63645.0,0.7200955]
[1727281056381,0.06614942,63654.0,63653.0,0.078546]
[1727281056584,0.06244942,63655.0,63654.0,0.078545]
[1727281057177,0.078544,63655.0,63654.0,0.078545]
[1727281057682,0.15657392,63655.0,63654.0,0.078545]
[1727281058084,0.15657392,63655.0,63654.0,0.079545]
[1727281058283,0.17057392,63655.0,63654.0,0.079545]
[1727281058976,0.092544,63655.0,63654.0,0.079545]
[1727281060475,0.094544,63655.0,63654.0,0.080545]
[1727281061186,0.016,63655.0,63654.0,0.080545]
[1727281062280,0.094544,63655.0,63654.0,0.080545]
[1727281062576,0.016,63655.0,63654.0,0.080545]
[1727281063790,0.094544,63655.0,63654.0,0.080545]
[1727281064885,0.17257392,63655.0,63654.0,0.080545]
[1727281065082,0.094544,63655.0,63654.0,0.080545]
[1727281065273,0.17257392,63655.0,63654.0,0.080545]
[1727281065481,0.094544,63655.0,63654.0,0.080545]
[1727281065788,0.016,63655.0,63654.0,0.080545]
[1727281065978,0.094544,63655.0,63654.0,0.080545]
[1727281066478,0.17257392,63655.0,63654.0,0.080545]
[1727281066681,0.094544,63655.0,63654.0,0.080545]
[1727281067086,0.17262943,63655.0,63654.0,0.080545]
[1727281067277,0.094544,63655.0,63654.0,0.080545]
[1727281067478,0.17263324,63655.0,63654.0,0.080545]
[1727281067681,0.12001258,63655.0,63654.0,0.080545]
[1727281067878,0.094544,63655.0,63654.0,0.080545]
[1727281068186,0.12001249,63655.0,63654.0,0.080545]
[1727281068389,0.12001269,63655.0,63654.0,0.080545]
[1727281070877,0.12001255,63655.0,63654.0,0.080545]
[1727281073686,0.12885255,63655.0,63654.0,0.080545]
[1727281076589,0.22248978,63655.0,63654.0,0.080545]
[1727281076783,0.12885255,63655.0,63654.0,0.080545]
[1727281081090,0.05030855,63655.0,63654.0,0.080545]
[1727281081890,0.12885255,63655.0,63654.0,0.080545]
[1727281083803,0.12885239,63655.0,63654.0,0.080545]
[1727281085208,0.05030839,63655.0,63654.0,0.080545]
[1727281085706,0.12885239,63655.0,63654.0,0.080545]
[1727281087205,0.22248962,63655.0,63654.0,0.080545]
[1727281087404,0.12885239,63655.0,63654.0,0.080545]
[1727281087990,0.12885239,63655.0,63654.0,0.002]
[1727281088191,0.30103362,63655.0,63654.0,0.002]
[1727281088497,1.81739639,63655.0,63654.0,0.002]
[1727281089094,0.12885239,63655.0,63654.0,0.002]
[1727281089295,0.22270426,63655.0,63654.0,0.080545]
[1727281089509,0.14416026,63655.0,63654.0,0.080545]
[1727281090494,0.37386426,63655.0,63654.0,0.002]
[1727281090694,0.28001239,63655.0,63654.0,0.002]
[1727281090903,0.42107395,63655.0,63654.0,0.002]
[1727281091902,0.35855639,63655.0,63654.0,0.002]
[1727281092809,0.42103206,63655.0,63654.0,0.002]
[1727281092998,0.42096027,63655.0,63654.0,0.002]
[1727281093606,0.26096027,63655.0,63654.0,0.002]
[1727281093808,0.19855828,63655.0,63654.0,0.002]
[1727281094207,0.12001428,63655.0,63654.0,0.002]
[1727281095107,0.12001428,63655.0,63654.0,0.080545]
[1727281097918,0.12001428,63655.0,63654.0,0.002]
[1727281099914,0.21383729,63655.0,63654.0,0.002]
[1727281100215,0.12001428,63655.0,63654.0,0.002]
[1727281101607,0.21385136,63655.0,63654.0,0.002]
[1727281102616,0.13530481,63655.0,63654.0,0.162]
[1727281102810,0.12001173,63655.0,63654.0,0.162]
[1727281103214,0.094544,63655.0,63654.0,0.162]
[1727281103812,0.12001046,63655.0,63654.0,0.162]
[1727281105520,0.12885046,63655.0,63654.0,0.162]
[1727281105926,0.12885046,63655.0,63654.0,0.002]
[1727281106619,0.30123154,63655.0,63654.0,0.002]
[1727281106916,0.64673846,63655.0,63654.0,0.002]
[1727281107132,0.70922712,63655.0,63654.0,0.002]
[1727281107622,2.20922712,63655.0,63654.0,0.002]
[1727281107809,2.20922712,63655.0,63642.0,0.14686594]
[1727281107810,0.078559,63643.0,63642.0,0.14686594]
[1727281108012,0.078559,63643.0,63642.0,0.0961]
[1727281109127,0.081559,63643.0,63642.0,0.0961]
[1727281109731,0.085559,63643.0,63642.0,0.0961]
[1727281110230,0.164118,63643.0,63642.0,0.0961]
[1727281110419,0.164118,63643.0,63636.0,0.06275459]
[1727281110420,0.007,63643.0,63638.0,0.04706594]
[1727281110618,0.16,63639.0,63629.0,0.04706594]
[1727281110818,0.238569,63635.0,63628.0,0.04706594]
[1727281111018,0.07858,63626.0,63625.0,0.0633]
[1727281111513,0.14106418,63626.0,63625.0,0.0633]
[1727281111715,0.078583,63623.0,63617.0,0.04706594]
[1727281111915,0.078583,63623.0,63614.0,0.06645459]
[1727281111916,0.078592,63616.0,63615.0,0.0648]
[1727281113231,0.078592,63616.0,63615.0,0.0708]
[1727281113419,0.0624156,63623.0,63615.0,0.0708]
[1727281113622,0.078583,63624.0,63622.0,0.16]
[1727281113824,0.078584,63623.0,63622.0,0.16]
[1727281114921,0.079584,63623.0,63622.0,0.16]
[1727281115118,0.001,63623.0,63615.0,0.2358]
[1727281115327,0.157184,63616.0,63615.0,0.0758]
[1727281115534,0.157184,63616.0,63615.0,0.005]
[1727281115827,0.157194,63612.0,63611.0,0.00235756]
[1727281116019,0.517994,63612.0,63611.0,0.00235756]
[1727281116219,0.596591,63612.0,63611.0,0.00235756]
[1727281116721,0.686891,63612.0,63611.0,0.00235756]
[1727281117125,0.686891,63612.0,63600.0,0.0037]
[1727281117126,0.157222,63601.0,63600.0,0.0037]
[1727281117328,0.5135156,63612.0,63593.0,0.0306]
[1727281117329,0.078619,63594.0,63593.0,0.0306]
[1727281117830,0.157238,63594.0,63593.0,0.0306]
[1727281118129,0.157238,63594.0,63589.0,0.0639]
[1727281118130,0.078624,63590.0,63589.0,0.0639]
[1727281118330,0.518048,63590.0,63589.0,0.0639]
[1727281118628,0.518048,63590.0,63586.0,0.16235874]
[1727281118629,0.078628,63587.0,63586.0,0.00235874]
[1727281118929,0.065628,63587.0,63586.0,0.00235874]
[1727281119429,0.144256,63587.0,63586.0,0.00235874]
[1727281120332,0.078642,63576.0,63575.0,0.0037]
[1727281120522,0.078647,63572.0,63571.0,0.0331]
[1727281120922,0.078647,63572.0,63571.0,0.03966775]
[1727281121117,0.238647,63572.0,63561.0,0.0037]
[1727281121321,0.078663,63559.0,63558.0,0.00235947]
[1727281121723,0.1637,63567.0,63558.0,1.07435947]
[1727281121724,0.078657,63564.0,63558.0,1.07435947]
[1727281121923,0.078661,63560.0,63558.0,0.00235947]
[1727281122139,0.07866,63561.0,63558.0,0.00235947]
[1727281122330,0.07866,63561.0,63560.0,0.16]
[1727281122531,0.0037,63568.0,63561.0,0.078659]
[1727281122737,0.3608,63570.0,63566.0,0.16]
[1727281122925,0.078646,63573.0,63567.0,0.0315]
[1727281123118,0.36686015,63576.0,63567.0,0.0315]
[1727281123320,0.36316015,63576.0,63567.0,0.0315]
[1727281123930,0.37442219,63576.0,63567.0,0.0315]
[1727281124137,0.078645,63573.0,63567.0,0.0315]